fUSD/lending_fUSD_20250824
["ID","MTS","AMOUNT","RATE_DAILY","PERIOD"]
[381137936,1756068639907,-894.0,0.00020683,2]
[381137940,1756068639916,-44294.0,0.00021349,2]
[381137944,1756068639927,-41763.11820818,0.00021349,2]
[381137956,1756068639963,-1705.12773812,0.00021349,2]
[381137959,1756068639974,-588.77300022,0.00021349,2]
[381137963,1756068639988,-20153.53685084,0.00021349,2]
[381138304,1756068643119,-184.94714743,0.00021155,2]
[381138305,1756068643129,-5814.99885293,0.00021349,2]
[381138306,1756068643141,-3511.498,0.00021349,2]
[381138314,1756068643398,-276.46867439,0.00021349,2]
[381138746,1756068647699,-378.0,0.00015937,2]
[381138748,1756068647709,-184.94714743,0.00021194,2]
[381138750,1756068647718,-101.47674995,0.00021349,2]
[381138753,1756068647729,-571.0664,0.00021349,2]
[381138755,1756068647741,-769.998475,0.00021349,2]
[381138759,1756068647767,-9638.30448,0.00021349,2]
[381138765,1756068647817,-454.04,0.00021349,2]
[381139000,1756068725182,1000.0,0.0001317,3]
[381139001,1756068725654,1000.0,0.00011987,3]
[381139005,1756068843282,1000.0,0.00013155,3]
[381139006,1756068843772,1000.0,0.00012012,3]
[381139009,1756068964523,1000.0,0.00013185,3]
[381139010,1756068964641,1000.0,0.00012248,3]
[381139021,1756069263559,169.33,0.00018695,120]
[381139027,1756069420719,367.91,0.00026761,120]
[381139037,1756069638955,-151.43006947,0.00012416,2]
[381139038,1756069683179,119.74593053,0.00012416,2]
[381139052,1756069832203,-180.25406947,0.00012416,2]
[381139054,1756069832213,-500.0,0.00012416,2]
[381139056,1756069832222,-500.0,0.00012909,2]
[381139058,1756069832232,-151.43006947,0.00013435,2]
[381139060,1756069832242,-250.0,0.00013657,2]
[381139062,1756069832252,-300.0,0.00013657,2]
[381139064,1756069832261,-500.0,0.00013657,2]
[381139066,1756069832271,-500.0,0.00013657,2]
[381139067,1756069832280,-159.61,0.00013686,2]
[381139068,1756069832289,-500.0,0.00013699,2]
[381139069,1756069832299,-354.8,0.00013699,2]
[381139070,1756069832308,-428.48809729,0.000139,2]
[381139071,1756069832317,-151.0,0.00014312,2]
[381139072,1756069832326,-1200.0,0.00014318,2]
[381139073,1756069832335,-1031.59776377,0.00014319,2]
[381139074,1756069835677,-168.40223623,0.00014319,2]
[381139075,1756069835687,-500.0,0.00014795,2]
[381139076,1756069835696,-250.0,0.00015,2]
[381139077,1756069835705,-242.26072137,0.00015122,2]
[381139078,1756069835735,-0.20112263,0.00015122,2]
[381139079,1756069835745,-1523.0,0.00015394,2]
[381139080,1756069835754,-1034.0,0.00015682,2]
[381139081,1756069835764,-1680.0,0.0001575,2]
[381139082,1756069835774,-309.0,0.00015999,2]
[381139083,1756069835783,-258.4291642,0.00015999,2]
[381139084,1756069835793,-500.0,0.00016301,2]
[381139085,1756069835802,-300.0,0.00016427,2]
[381139086,1756069835811,-151.0,0.00016428,2]
[381139087,1756069835821,-151.0,0.00016428,2]
[381139088,1756069835831,-151.0,0.00016428,2]
[381139089,1756069835840,-151.0,0.00016428,2]
[381139090,1756069835849,-151.0,0.00016428,2]
[381139091,1756069835860,-151.0,0.00016428,2]
[381139092,1756069835869,-151.0,0.00016428,2]
[381139093,1756069835879,-151.0,0.00016428,2]
[381139094,1756069835888,-151.0,0.00016428,2]
[381139095,1756069835897,-151.0,0.00016428,2]
[381139096,1756069835906,-151.0,0.00016428,2]
[381139097,1756069835915,-500.0,0.00016428,2]
[381139098,1756069835926,-500.0,0.00016428,2]
[381139099,1756069835935,-200.0,0.00016428,2]
[381139100,1756069835945,-454.55463035,0.00016428,2]
[381139101,1756069835954,-500.0,0.00016428,2]
[381139102,1756069835963,-154.46931601,0.00016428,2]
[381139103,1756069835972,-500.0,0.00016437,2]
[381139105,1756069835982,-500.0,0.00016437,2]
[381139107,1756069835991,-500.0,0.00016437,2]
[381139109,1756069836001,-500.0,0.00016437,2]
[381139111,1756069836010,-359.22918553,0.00016437,2]
[381139113,1756069836020,-321.58021339,0.00016437,2]
[381139115,1756069836029,-600.0,0.00016438,2]
[381139116,1756069836039,-600.0,0.00016438,2]
[381139118,1756069836048,-600.0,0.00016438,2]
[381139120,1756069836057,-600.0,0.00016438,2]
[381139122,1756069836067,-600.0,0.00016438,2]
[381139124,1756069836076,-600.0,0.00016438,2]
[381139126,1756069836086,-600.0,0.00016438,2]
[381139128,1756069836095,-519.48084729,0.00016438,2]
[381139130,1756069836105,-500.0,0.00016483,2]
[381139132,1756069836115,-151.0,0.00017051,2]
[381139134,1756069836124,-2751.0,0.00017231,2]
[381139136,1756069836134,-150.0,0.00017271,2]
[381139138,1756069836143,-1871.0,0.00017325,2]
[381139140,1756069836152,-300.0,0.00017326,2]
[381139142,1756069836162,-150.0,0.00017326,2]
[381139145,1756069836175,-325.80171005,0.00017326,2]
[381139147,1756069836188,-174.19828995,0.00017326,2]
[381139149,1756069836197,-300.0,0.000176,2]
[381139151,1756069836207,-500.0,0.000176,2]
[381139153,1756069836217,-1000.0,0.00017611,2]
[381139155,1756069836227,-338.94612903,0.00017659,2]
[381139157,1756069836240,-272.42968012,0.00017659,2]
[381139159,1756069836249,-250.0,0.00017726,2]
[381139161,1756069836258,-1252.47,0.00017742,2]
[381139163,1756069836268,-1252.47,0.00017746,2]
[381139165,1756069836277,-1252.47,0.00017751,2]
[381139167,1756069836287,-500.0,0.00017751,2]
[381139169,1756069836297,-150.0,0.00017751,2]
[381139172,1756069836306,-500.0,0.00017751,2]
[381139173,1756069836316,-500.0,0.00017751,2]
[381139175,1756069836325,-500.0,0.00017751,2]
[381139177,1756069836335,-500.0,0.00017751,2]
[381139180,1756069836345,-150.0,0.00017751,2]
[381139182,1756069836355,-500.0,0.00017751,2]
[381139184,1756069836368,-1252.47,0.00017756,2]
[381139186,1756069836378,-1252.47,0.0001776,2]
[381139188,1756069836388,-1252.47,0.00017765,2]
[381139190,1756069836398,-1500.0,0.00017769,2]
[381139191,1756069836410,-1252.47,0.00017769,2]
[381139193,1756069836422,-150.0,0.0001777,2]
[381139195,1756069836433,-500.0,0.0001777,2]
[381139198,1756069836447,-500.0,0.0001777,2]
[381139199,1756069836457,-500.0,0.0001777,2]
[381139201,1756069836467,-500.0,0.0001777,2]
[381139203,1756069836477,-500.0,0.0001777,2]
[381139204,1756069836486,-150.0,0.0001777,2]
[381139205,1756069836496,-150.0,0.0001777,2]
[381139206,1756069836506,-150.0,0.0001777,2]
[381139207,1756069836516,-150.0,0.0001777,2]
[381139208,1756069836526,-150.0,0.0001777,2]
[381139209,1756069836536,-150.0,0.0001777,2]
[381139210,1756069836546,-150.0,0.0001777,2]
[381139211,1756069836555,-150.0,0.0001777,2]
[381139212,1756069836564,-500.0,0.0001777,2]
[381139213,1756069836574,-500.0,0.0001777,2]
[381139214,1756069836584,-500.0,0.0001777,2]
[381139215,1756069836593,-150.0,0.0001777,2]
[381139216,1756069836603,-500.0,0.0001777,2]
[381139217,1756069836612,-500.0,0.0001777,2]
[381139218,1756069836622,-500.0,0.0001777,2]
[381139219,1756069836631,-500.0,0.0001777,2]
[381139220,1756069836640,-150.0,0.0001777,2]
[381139221,1756069836649,-500.0,0.0001777,2]
[381139222,1756069836658,-500.0,0.0001777,2]
[381139223,1756069836667,-150.0,0.0001777,2]
[381139224,1756069836679,-150.0,0.0001777,2]
[381139225,1756069836688,-150.0,0.0001777,2]
[381139226,1756069836697,-1252.47,0.00017774,2]
[381139227,1756069836707,-1252.47,0.00017779,2]
[381139228,1756069836716,-1252.47,0.00017783,2]
[381139229,1756069836726,-1252.47,0.00017788,2]
[381139230,1756069836737,-1252.47,0.00017793,2]
[381139231,1756069836747,-1252.47,0.00017797,2]
[381139232,1756069836756,-1252.47,0.00017802,2]
[381139233,1756069836767,-1252.47,0.00017807,2]
[381139234,1756069836776,-1252.47,0.00017811,2]
[381139235,1756069836786,-1252.47,0.00017816,2]
[381139236,1756069836795,-1252.47,0.00017821,2]
[381139237,1756069836804,-1252.47,0.00017825,2]
[381139238,1756069836814,-1252.47,0.0001783,2]
[381139239,1756069836823,-367.91,0.0001784,2]
[381139240,1756069836832,-1000.0,0.00017842,2]
[381139241,1756069836841,-300.0,0.00017874,2]
[381139242,1756069836851,-500.0,0.00017874,2]
[381139243,1756069836860,-500.0,0.00018025,2]
[381139244,1756069836869,-500.0,0.00018025,2]
[381139245,1756069836878,-500.0,0.00018025,2]
[381139246,1756069836887,-500.0,0.00018025,2]
[381139247,1756069836897,-500.0,0.00018025,2]
[381139248,1756069836907,-500.0,0.00018025,2]
[381139249,1756069836916,-150.0,0.00018044,2]
[381139250,1756069836930,-607.50401271,0.00018044,2]
[381139251,1756069836940,-500.0,0.00018044,2]
[381139252,1756069836950,-600.0,0.00018044,2]
[381139253,1756069836960,-500.0,0.00018044,2]
[381139254,1756069836970,-500.0,0.00018044,2]
[381139255,1756069836979,-150.0,0.00018044,2]
[381139256,1756069836989,-150.0,0.00018044,2]
[381139257,1756069836999,-150.0,0.00018044,2]
[381139258,1756069837008,-150.0,0.00018044,2]
[381139259,1756069837018,-150.0,0.00018044,2]
[381139260,1756069837027,-150.0,0.00018044,2]
[381139261,1756069837036,-150.0,0.00018044,2]
[381139262,1756069837046,-150.0,0.00018044,2]
[381139263,1756069837055,-500.0,0.00018044,2]
[381139264,1756069837065,-500.0,0.00018044,2]
[381139265,1756069837074,-500.0,0.00018044,2]
[381139266,1756069837085,-150.0,0.00018044,2]
[381139267,1756069837094,-500.0,0.00018044,2]
[381139268,1756069837103,-500.0,0.00018044,2]
[381139269,1756069837111,-500.0,0.00018044,2]
[381139270,1756069837120,-564.59827814,0.00018044,2]
[381139271,1756069837129,-150.0,0.00018044,2]
[381139272,1756069837139,-500.0,0.00018044,2]
[381139273,1756069837148,-500.0,0.00018044,2]
[381139274,1756069837161,-150.0,0.00018044,2]
[381139275,1756069837172,-297.50449907,0.00018044,2]
[381139276,1756069837181,-300.0,0.00018148,2]
[381139277,1756069837190,-500.0,0.00018148,2]
[381139278,1756069837199,-224.0500612,0.00018299,2]
[381139279,1756069837209,-350.0,0.00018299,2]
[381139280,1756069837219,-500.0,0.00018299,2]
[381139281,1756069837228,-500.0,0.00018299,2]
[381139282,1756069837238,-500.0,0.00018299,2]
[381139283,1756069837247,-500.0,0.00018299,2]
[381139284,1756069837256,-500.0,0.00018318,2]
[381139285,1756069837265,-500.0,0.00018318,2]
[381139286,1756069837275,-500.0,0.00018318,2]
[381139287,1756069837284,-150.0,0.00018318,2]
[381139288,1756069837293,-150.0,0.00018318,2]
[381139289,1756069837302,-150.0,0.00018318,2]
[381139290,1756069837312,-150.0,0.00018318,2]
[381139291,1756069837321,-150.0,0.00018318,2]
[381139292,1756069837331,-150.0,0.00018318,2]
[381139293,1756069837341,-150.0,0.00018318,2]
[381139294,1756069837351,-150.0,0.00018318,2]
[381139295,1756069837363,-500.0,0.00018318,2]
[381139296,1756069837373,-500.0,0.00018318,2]
[381139297,1756069837383,-500.0,0.00018318,2]
[381139298,1756069837392,-250.15831044,0.00018318,2]
[381139299,1756069837403,-250.0,0.00018318,2]
[381139300,1756069837412,-500.0,0.00018318,2]
[381139301,1756069837423,-500.0,0.00018318,2]
[381139302,1756069837438,-150.0,0.00018318,2]
[381139303,1756069837453,-500.0,0.00018318,2]
[381139304,1756069837463,-500.0,0.00018318,2]
[381139305,1756069837473,-207.03780362,0.00018318,2]
[381139306,1756069837483,-300.0,0.00018422,2]
[381139307,1756069837492,-500.0,0.00018422,2]
[381139308,1756069837504,-1772.85,0.00018473,2]
[381139309,1756069837514,-1852.42,0.00018473,2]
[381139310,1756069837524,-166.67,0.0001854,2]
[381139311,1756069837534,-166.66,0.00018556,2]
[381139312,1756069837544,-150.0,0.00018573,2]
[381139313,1756069837553,-500.0,0.00018573,2]
[381139314,1756069837563,-500.0,0.00018573,2]
[381139315,1756069837572,-500.0,0.00018573,2]
[381139316,1756069837582,-666.0,0.00018573,3]
[381139317,1756069837591,-610.0,0.00018578,2]
[381139318,1756069837601,-500.0,0.00018592,2]
[381139319,1756069837610,-500.0,0.00018592,2]
[381139320,1756069837620,-500.0,0.00018592,2]
[381139321,1756069837629,-150.0,0.00018592,2]
[381139322,1756069837638,-150.0,0.00018592,2]
[381139323,1756069837647,-206.52093311,0.00018592,2]
[381139324,1756069837656,-203.06078807,0.00018592,2]
[381139325,1756069837665,-201.11521128,0.00018592,2]
[381139326,1756069837677,-150.0,0.00018592,2]
[381139327,1756069837686,-211.1728075,0.00018592,2]
[381139328,1756069837697,-500.0,0.00018592,2]
[381139329,1756069837706,-500.0,0.00018592,2]
[381139330,1756069837716,-500.0,0.00018592,2]
[381139331,1756069837725,-500.0,0.00018592,2]
[381139332,1756069837735,-500.0,0.00018592,2]
[381139333,1756069837744,-150.0,0.00018592,2]
[381139334,1756069837754,-500.0,0.00018592,2]
[381139335,1756069837763,-500.0,0.00018592,2]
[381139336,1756069837773,-1764.32,0.00018649,2]
[381139337,1756069837782,-253.92012468,0.00018652,2]
[381139338,1756069837792,-157.36,0.00018653,2]
[381139339,1756069837801,-466.57,0.00018695,2]
[381139340,1756069837810,-300.0,0.00018696,2]
[381139341,1756069837820,-285.1257177,0.00018696,2]
[381139342,1756069837829,-500.0,0.00018847,2]
[381139343,1756069837838,-500.0,0.00018847,2]
[381139344,1756069837847,-500.0,0.00018847,2]
[381139345,1756069837857,-200.0,0.00018855,2]
[381139346,1756069837867,-174.08175201,0.00018866,2]
[381139347,1756069837876,-500.0,0.00018866,2]
[381139348,1756069837886,-200.0,0.00018866,2]
[381139349,1756069837895,-251.9825204,0.00018866,2]
[381139350,1756069837904,-250.0,0.00018866,2]
[381139351,1756069837914,-254.71980629,0.00018866,2]
[381139352,1756069837924,-500.0,0.00018866,2]
[381139353,1756069837934,-500.0,0.00018866,2]
[381139354,1756069837943,-500.0,0.00018866,2]
[381139355,1756069837952,-607.05277071,0.00018866,2]
[381139356,1756069837961,-500.0,0.00018866,2]
[381139357,1756069837971,-293.51794672,0.00018866,2]
[381139358,1756069837981,-621.93410807,0.00018866,2]
[381139359,1756069837990,-500.0,0.00018866,2]
[381139360,1756069837999,-300.0,0.0001897,2]
[381139362,1756069838009,-500.0,0.00019121,2]
[381139364,1756069838018,-500.0,0.00019121,2]
[381139366,1756069838027,-500.0,0.00019121,2]
[381139368,1756069838037,-500.0,0.0001914,2]
[381139370,1756069838046,-500.0,0.0001914,2]
[381139371,1756069838055,-150.0,0.0001914,2]
[381139372,1756069838065,-150.0,0.0001914,2]
[381139373,1756069838075,-500.0,0.0001914,2]
[381139374,1756069838084,-500.0,0.0001914,2]
[381139375,1756069838094,-175.3,0.00019197,2]
[381139376,1756069838103,-300.0,0.00019244,2]
[381139377,1756069838112,-500.0,0.00019395,2]
[381139378,1756069838122,-502.82958232,0.00019395,2]
[381139379,1756069838131,-500.0,0.00019395,2]
[381139380,1756069838141,-202.15759086,0.00019414,2]
[381139381,1756069838150,-500.0,0.00019414,2]
[381139382,1756069838159,-300.0,0.00019414,2]
[381139383,1756069838168,-500.0,0.00019414,2]
[381139384,1756069838183,-1764.32,0.00019581,2]
[381139385,1756069838192,-500.0,0.00019669,2]
[381139386,1756069838202,-500.0,0.00019688,2]
[381139387,1756069838211,-500.0,0.00019688,2]
[381139388,1756069838220,-4153.0,0.00019736,2]
[381139389,1756069838230,-8812.18801267,0.00019736,2]
[381139390,1756069838260,-643.78375997,0.00019736,2]
[381139391,1756069838284,-286.97500412,0.00019736,2]
[381139392,1756069838295,-1219.113,0.00019736,2]
[381139393,1756069838307,-4987.95222324,0.00019736,2]
[381139394,1756069838315,-3843.362,0.00019736,2]
[381139395,1756069838324,-718.0,0.00019736,2]
[381139396,1756069838333,-151.0,0.0001979,2]
[381139397,1756069838342,-1000.0,0.00019812,2]
[381139398,1756069838352,-193.83,0.00019863,2]
[381139399,1756069838363,-500.0,0.00019943,2]
[381139400,1756069838373,-500.0,0.00019962,2]
[381139401,1756069838382,-341.68108927,0.00019962,2]
[381139402,1756069838391,-367.91,0.0002007,2]
[381139403,1756069838402,-354.8,0.00020187,2]
[381139404,1756069838411,-512.0,0.000202,2]
[381139405,1756069838424,-500.0,0.00020217,2]
[381139406,1756069838434,-500.0,0.00020236,2]
[381139407,1756069838443,-160.0,0.00020377,2]
[381139408,1756069838452,-695.39793187,0.00020377,2]
[381139409,1756069838462,-286.8585593,0.00020377,2]
[381139410,1756069838472,-267.46074303,0.00020377,2]
[381139411,1756069838481,-1000.0,0.00020377,2]
[381139413,1756069838491,-322.6107,0.00020377,2]
[381139415,1756069838501,-837.25905865,0.00020377,2]
[381139417,1756069838510,-5888.0,0.00020466,2]
[381139419,1756069838519,-155.74496638,0.00020486,2]
[381139420,1756069838530,-500.0,0.00020491,2]
[381139422,1756069838541,-500.0,0.0002051,2]
[381139425,1756069838551,-1764.32,0.00020514,2]
[381139426,1756069838560,-844.35788172,0.0002052,2]
[381139428,1756069838569,-212.11701231,0.0002052,2]
[381139430,1756069838578,-160.0,0.0002052,2]
[381139432,1756069838588,-458.63746581,0.0002052,2]
[381139434,1756069838597,-155.74496625,0.00020565,2]
[381139436,1756069838606,-233.27,0.00020584,2]
[381139438,1756069838615,-1265.16122273,0.00020586,2]
[381139440,1756069838625,-155.74496625,0.00020643,2]
[381139442,1756069838634,-150.26,0.00020686,2]
[381139444,1756069838643,-198.435,0.00020686,2]
[381139446,1756069838652,-150.0,0.00020686,2]
[381139448,1756069838661,-337.23857569,0.00020686,2]
[381139450,1756069838675,-909.359991,0.00020686,2]
[381139453,1756069838687,-784.40143331,0.00020686,2]
[381139455,1756069838696,-32.47856669,0.00020686,2]
[381139532,1756069839772,-892.52143331,0.00020686,2]
[381139533,1756069839781,-495.26256406,0.00020686,2]
[381139534,1756069839792,-759.73743594,0.00020686,2]
[381139535,1756069839801,-1240.26256406,0.00020686,2]
[381139536,1756069839824,-478.21,0.00020686,2]
[381139537,1756069839981,-1654.52743594,0.00020686,2]
[381139538,1756069839990,-599.0,0.00020686,2]
[381139539,1756069839999,-262.44883432,0.00020686,2]
[381139540,1756069840011,-303.55116568,0.00020686,2]
[381139541,1756069840021,-1657.0,0.00020686,2]
[381139542,1756069840030,-821.65999432,0.00020686,2]
[381139543,1756069840041,-476.34000568,0.00020686,2]
[381139544,1756069840050,-395.43936752,0.00020708,2]
[381139545,1756069840059,-155.74496625,0.00020722,2]
[381139546,1756069840068,-1265.16122264,0.00020753,2]
[381139548,1756069840078,-500.0,0.00020765,2]
[381139550,1756069840087,-500.0,0.00020784,2]
[381139551,1756069840104,-155.74496625,0.000208,2]
[381139552,1756069840121,-155.74496625,0.00020879,2]
[381139554,1756069840141,-1116.0,0.00020879,2]
[381139555,1756069840153,-136.91740387,0.00020895,2]
[381139558,1756069840905,-979.08259613,0.00020895,2]
[381139559,1756069840915,-1319.10657277,0.00020917,3]
[381139560,1756069841001,-1535.07693399,0.00020917,3]
[381139561,1756069841012,-3579.0,0.00020917,3]
[381139562,1756069841087,-566.81649324,0.00020917,3]
[381139563,1756069841097,-58.25059811,0.00020918,2]
[381139570,1756069843510,-531.7208,0.00020918,2]
[381139571,1756069843523,-526.02860189,0.00020918,2]
[381139572,1756069843532,-1040.31054236,0.0002092,2]
[381139573,1756069843586,-224.85068028,0.0002092,2]
[381139574,1756069843596,-155.74496625,0.00020957,2]
[381139575,1756069843605,-880.68629776,0.0002098,2]
[381139576,1756069843616,-157.36,0.00020985,2]
[381139577,1756069843625,-816.84,0.00021032,2]
[381139578,1756069843635,-255.3626308,0.00021032,2]
[381139579,1756069843647,-153.0573692,0.00021032,2]
[381139580,1756069843656,-1116.0,0.00021033,2]
[381139581,1756069843666,-155.74496625,0.00021036,2]
[381139582,1756069843677,-500.0,0.00021039,2]
[381139583,1756069843687,-508.0,0.00021058,2]
[381139584,1756069843696,-13.19330644,0.00021088,2]
[381139585,1756069843708,-1251.9679162,0.00021088,2]
[381139586,1756069843717,-1116.0,0.00021092,2]
[381139587,1756069843727,-2500.0,0.000211,2]
[381139588,1756069843736,-1000.0,0.000211,2]
[381139589,1756069843745,-155.74496625,0.00021114,2]
[381139590,1756069843755,-284.19462262,0.0002113,2]
[381139591,1756069843764,-2977.96605,0.0002114,2]
[381139592,1756069843773,-155.8,0.0002119,2]
[381139593,1756069843783,-155.8,0.0002119,2]
[381139595,1756069843793,-155.8,0.0002119,2]
[381139596,1756069843802,-155.74496625,0.00021193,2]
[381139597,1756069843811,-39884.68147665,0.000212,2]
[381139598,1756069845506,-18964.88172308,0.000212,2]
[381139599,1756069845523,-8808.64225253,0.000212,2]
[381139600,1756069845573,-337.45234431,0.000212,2]
[381139601,1756069845619,-7948.90068111,0.000212,2]
[381139602,1756069845637,-285.01429494,0.000212,2]
[381139603,1756069845697,-29500.12504023,0.000212,2]
[381139604,1756069845744,-479.75,0.000212,2]
[381139617,1756069847284,-455.95,0.00020476,3]
[381139618,1756069847294,-205.41,0.000212,2]
[381139619,1756069847358,-1934.3048977,0.000212,2]
[381139620,1756069847400,-1173.0,0.00020563,2]
[381139621,1756069847409,-2156.75769063,0.000212,2]
[381139622,1756069847418,-664.82136588,0.00021216,10]
[381139623,1756069847429,-2977.96605,0.0002123,2]
[381139624,1756069847439,-156.38775484,0.00021249,2]
[381139625,1756069847449,-185.37764556,0.00021252,2]
[381139626,1756069847459,-1265.16122264,0.00021255,2]
[381139627,1756069847468,-185.37764556,0.00021259,2]
[381139628,1756069847477,-355.16735887,0.0002127,2]
[381139629,1756069847487,-185.37764556,0.00021271,2]
[381139630,1756069847496,-155.74496625,0.00021272,2]
[381139631,1756069847506,-874.74945433,0.00021277,2]
[381139632,1756069847517,-1643.42142747,0.00021277,2]
[381139633,1756069847527,-185.37764556,0.00021278,2]
[381139634,1756069847536,-200.0,0.0002129,2]
[381139635,1756069847546,-355.16735887,0.00021295,2]
[381139636,1756069847557,-185.37764556,0.00021295,2]
[381139637,1756069847566,-1000.0,0.000213,2]
[381139638,1756069847576,-355.16735887,0.00021301,2]
[381139639,1756069847586,-500.0,0.00021313,2]
[381139640,1756069847595,-351.68388785,0.00021319,2]
[381139641,1756069847665,-3.48347102,0.00021319,2]
[381139642,1756069847677,-1116.0,0.0002132,2]
[381139643,1756069847687,-1830.96652898,0.00021325,2]
[381139644,1756069847746,-687.20435282,0.00021325,2]
[381139645,1756069847756,-2518.1708818,0.00021329,2]
[381139646,1756069847766,-185.37764556,0.0002133,2]
[381139647,1756069847775,-2518.1708818,0.00021332,2]
[381139648,1756069847785,-355.16735887,0.00021333,2]
[381139649,1756069847794,-5818.04366674,0.00021336,2]
[381139671,1756070682572,200.0,0.0001,2]
[381139672,1756070737522,434.19,0.00025603,120]
[381139673,1756070737868,434.19,0.0002793,120]
[381139694,1756070837498,1000.0,0.000118,4]
[381139695,1756070839668,2000.0,0.000119,4]
[381139696,1756070884624,1000.0,0.00013144,3]
[381139700,1756070914972,-13043.69999989,0.000118,2]
[381139701,1756070914996,-9975.05293794,0.00011899,2]
[381139702,1756070915018,-405.31027074,0.00011899,2]
[381139703,1756070915041,-3198.20994868,0.00011899,2]
[381139704,1756070915062,-1200.0,0.00011949,2]
[381139705,1756070915083,-300.0,0.00011949,2]
[381139706,1756070915106,-150.0,0.00011949,2]
[381139707,1756070915127,-568.84446435,0.00011949,2]
[381139708,1756070915150,-500.0,0.0001195,2]
[381139709,1756070915171,-282954.12031355,0.0001195,2]
[381139710,1756070915195,-868227.13896444,0.00012,2]
[381139711,1756070915218,-109702.63103567,0.00012,2]
[381139712,1756070915239,-6579.41,0.00012,2]
[381139713,1756070920211,326.66712477,0.00011949,2]
[381139714,1756070920322,500.0,0.00011949,2]
[381139715,1756070920419,500.0,0.00011949,2]
[381139716,1756070920540,210.13451009,0.00011949,2]
[381139717,1756070920739,500.0,0.00011949,2]
[381139718,1756070923115,500.0,0.00011949,2]
[381139719,1756070923149,170.27491792,0.00011949,2]
[381139720,1756070923180,161.11524865,0.00011949,2]
[381139721,1756070923233,500.0,0.00011949,2]
[381139722,1756070923307,500.0,0.00011949,2]
[381139723,1756070923902,500.0,0.00011949,2]
[381139724,1756070924129,500.0,0.00011949,2]
[381139725,1756070924193,247.20022363,0.00011949,2]
[381139737,1756070941255,300.0,0.00011898,2]
[381139738,1756070942073,253.32193686,0.00012,2]
[381139739,1756070942209,336.10630508,0.00012,2]
[381139740,1756070942330,336.10630508,0.00012,2]
[381139741,1756070945819,280.08858757,0.00012,2]
[381139742,1756070946193,-265.50839225,0.00012924,2]
[381139743,1756070947579,186.72572504,0.00012924,2]
[381139744,1756070949497,151.0,0.00012924,2]
[381139745,1756070950889,197.59475972,0.00012907,2]
[381139746,1756070951449,222.45145009,0.00012924,2]
[381139747,1756070961409,-9975.05293789,0.00013007,2]
[381139748,1756070961431,-255.0,0.00013024,2]
[381139749,1756070961453,-167.38057009,0.00013072,2]
[381139750,1756070961474,-500.0,0.00013144,2]
[381139751,1756070961497,-405.31027073,0.00013433,2]
[381139752,1756070961518,-150.0,0.00013599,2]
[381139753,1756070961542,-337.43,0.00013699,2]
[381139754,1756070961563,-9975.05293789,0.00014115,2]
[381139755,1756070961584,-3198.20994864,0.00014157,2]
[381139756,1756070961606,-195.0,0.00014195,2]
[381139757,1756070961628,-167.38057004,0.00014196,2]
[381139758,1756070961650,-2500.0,0.00014232,2]
[381139759,1756070961677,-405.31027073,0.00014968,2]
[381139760,1756070961697,-2008.83806139,0.00015,2]
[381139761,1756070961720,-7820.0340965,0.00015,2]
[381139762,1756070961742,-18593.91130595,0.00015,2]
[381139763,1756070961763,-151.0,0.00015,2]